fUST/lending_fUST_20241121
["ID","MTS","AMOUNT","RATE_DAILY","PERIOD"]
[342833294,1732169448171,-500.0,0.00021917,2]
[342833296,1732169448180,-500.0,0.00021917,2]
[342833298,1732169448190,-451.6222673,0.00021917,2]
[342833300,1732169448204,-48.3777327,0.00021917,2]
[342833302,1732169448213,-204.09424376,0.00021917,2]
[342833305,1732169448225,-297.66204324,0.00021917,2]
[342833307,1732169448234,-10.07335676,0.00021917,2]
[342833415,1732169485458,293.0,0.00026,60]
[342833418,1732169576718,500.0,0.00025,120]
[342833419,1732169627191,500.0,0.00026,60]
[342833420,1732169800737,-211.0,0.0002504,16]
[342833421,1732169800767,-239.7,0.00025772,15]
[342833422,1732169800902,-263.9,0.000266,31]
[342833423,1732169800928,-263.9,0.000266,31]
[342833424,1732169800953,-263.9,0.000266,31]
[342833425,1732169800978,-263.9,0.000266,31]
[342833426,1732169801006,-263.9,0.000266,31]
[342833427,1732169801030,-263.9,0.000266,31]
[342833428,1732169801056,-263.9,0.000266,31]
[342833429,1732169801081,-263.9,0.000266,31]
[342833430,1732169801109,-233.49,0.000266,31]
[342833431,1732169801237,-500.0,0.000261,20]
[342833432,1732169915941,1430.7357418,0.00026,60]
[342833433,1732170280450,62.8742582,0.000261,20]
[342833454,1732170354802,30000.0,0.0001,2]
[342833475,1732170537378,331.86,0.00026,60]
[342833480,1732170564325,2067.1,0.00026,60]
[342833484,1732170598826,44140.79670066,0.00022,15]
[342833509,1732170609448,211.0,0.0002504,16]
[342833539,1732170633129,-300.0,9.999e-05,2]
[342833540,1732170633139,-300.0,9.999e-05,2]
[342833541,1732170633155,-40551.0,9.999e-05,2]
[342833542,1732170633165,-928.2247598,0.0001,2]
[342833543,1732170633175,-43481.63786808,0.0001,2]
[342833544,1732170633185,-1180.40452348,0.000109,2]
[342833545,1732170633194,-558.16,0.00010959,2]
[342833546,1732170633204,-420.0,0.00010999,2]
[342833547,1732170633215,-420.0,0.00010999,2]
[342833548,1732170633226,-3488.3342163,0.00012003,2]
[342833549,1732170633236,-587.0,0.00012099,2]
[342833550,1732170633246,-587.0,0.00012099,2]
[342833551,1732170633256,-917.90473785,0.000125,2]
[342833552,1732170633265,-964.36768139,0.00013,2]
[342833553,1732170633275,-823.0,0.00013309,2]
[342833554,1732170633284,-823.0,0.00013309,2]
[342833555,1732170633295,-17636.80955808,0.000134,2]
[342833556,1732170633305,-178.66775489,0.00013599,2]
[342833557,1732170633315,-5222.040582,0.00013699,2]
[342833558,1732170633324,-254.515008,0.00013973,2]
[342833560,1732170633334,-268.04018605,0.00014114,2]
[342833562,1732170633343,-5222.040582,0.00014384,2]
[342833564,1732170633352,-651.0,0.0001464,2]
[342833566,1732170633361,-1152.0,0.0001464,2]
[342833568,1732170633370,-562.2515508,0.000149,2]
[342833570,1732170633380,-436.33460741,0.00015,2]
[342833572,1732170633392,-5222.040582,0.00015068,2]
[342833573,1732170633402,-3000.0,0.00015718,2]
[342833574,1732170633411,-24900.0,0.00015811,2]
[342833575,1732170633420,-206.91558654,0.00016,2]
[342833576,1732170633429,-622.0,0.00016103,2]
[342833577,1732170633439,-178.66775488,0.00016429,2]
[342833578,1732170633448,-7015.625,0.00018,2]
[342833579,1732170633457,-500.0,0.00018043,2]
[342833580,1732170633466,-500.41168473,0.00018043,2]
[342833581,1732170633476,-1031.1088298,0.00018052,2]
[342833582,1732170633486,-218.739602,0.00018185,2]
[342833583,1732170633496,-839.28633196,0.00018663,2]
[342833584,1732170633505,-161.513634,0.00019178,2]
[342833585,1732170633514,-372.1,0.00019249,3]
[342833586,1732170633524,-186.05,0.00019249,3]
[342833587,1732170633533,-178.66775488,0.00019259,2]
[342833588,1732170633543,-175.35481333,0.0001926,2]
[342833589,1732170633552,-189.29712324,0.00019358,2]
[342833590,1732170633561,-200.91175868,0.00019358,2]
[342833592,1732170633571,-253.5321291,0.00019358,2]
[342833594,1732170633580,-204.05714333,0.00019358,2]
[342833596,1732170633589,-500.0,0.00019359,2]
[342833597,1732170633599,-400.02636232,0.00019359,2]
[342833599,1732170633609,-500.0,0.00019359,2]
[342833601,1732170633619,-500.0,0.00019359,2]
[342833602,1732170633629,-214.72864727,0.00019359,2]
[342833604,1732170633639,-589.72081499,0.00019359,2]
[342833605,1732170633651,-500.0,0.00019359,2]
[342833606,1732170633661,-500.0,0.00019359,2]
[342833608,1732170633671,-500.0,0.00019359,2]
[342833610,1732170633680,-500.0,0.00019359,2]
[342833612,1732170633690,-510.04010481,0.00019359,2]
[342833614,1732170633699,-500.0,0.00019359,2]
[342833615,1732170633709,-500.0,0.00019359,2]
[342833617,1732170633718,-500.0,0.00019359,2]
[342833619,1732170633728,-500.0,0.00019359,2]
[342833620,1732170633737,-500.0,0.00019359,2]
[342833621,1732170633747,-500.0,0.00019359,2]
[342833622,1732170633756,-500.0,0.00019359,2]
[342833623,1732170633766,-600.0,0.00019359,2]
[342833624,1732170633775,-500.0,0.00019359,2]
[342833625,1732170633785,-500.0,0.00019359,2]
[342833626,1732170633795,-500.0,0.00019359,2]
[342833627,1732170633805,-500.0,0.00019359,2]
[342833628,1732170633814,-500.0,0.00019359,2]
[342833629,1732170633824,-500.0,0.00019359,2]
[342833630,1732170633834,-500.0,0.00019359,2]
[342833631,1732170633843,-500.0,0.00019359,2]
[342833632,1732170633853,-500.0,0.00019359,2]
[342833633,1732170633862,-500.0,0.00019359,2]
[342833634,1732170633872,-500.0,0.00019359,2]
[342833635,1732170633881,-500.0,0.00019359,2]
[342833636,1732170633891,-500.0,0.00019359,2]
[342833637,1732170633903,-500.0,0.00019359,2]
[342833638,1732170633912,-500.0,0.00019359,2]
[342833639,1732170633922,-625.07249751,0.00019359,2]
[342833640,1732170633932,-500.0,0.00019359,2]
[342833641,1732170633941,-231.92049389,0.00019359,2]
[342833642,1732170633951,-500.0,0.00019359,2]
[342833643,1732170633961,-500.0,0.00019359,2]
[342833644,1732170633970,-500.0,0.00019359,2]
[342833645,1732170633980,-500.0,0.00019359,2]
[342833646,1732170633989,-500.0,0.00019359,2]
[342833647,1732170633999,-514.81789419,0.00019359,2]
[342833649,1732170634010,-500.0,0.00019359,2]
[342833650,1732170634019,-500.0,0.00019359,2]
[342833651,1732170634028,-500.0,0.00019359,2]
[342833652,1732170634038,-500.0,0.00019359,2]
[342833653,1732170634048,-500.0,0.00019359,2]
[342833654,1732170634058,-500.0,0.00019359,2]
[342833655,1732170634068,-500.0,0.00019359,2]
[342833656,1732170634078,-500.0,0.00019359,2]
[342833658,1732170634088,-500.0,0.00019359,2]
[342833659,1732170634097,-500.0,0.00019359,2]
[342833660,1732170634107,-500.0,0.00019359,2]
[342833661,1732170634117,-500.0,0.00019359,2]
[342833662,1732170634127,-500.0,0.00019359,2]
[342833663,1732170634137,-500.0,0.00019359,2]
[342833664,1732170634148,-500.0,0.00019359,2]
[342833665,1732170634157,-500.0,0.00019359,2]
[342833666,1732170634166,-500.0,0.00019359,2]
[342833667,1732170634176,-500.0,0.00019359,2]
[342833668,1732170634186,-500.0,0.00019359,2]
[342833669,1732170634195,-500.0,0.00019359,2]
[342833670,1732170634204,-500.0,0.00019359,2]
[342833671,1732170634217,-500.0,0.00019359,2]
[342833672,1732170634227,-500.0,0.00019359,2]
[342833673,1732170634237,-500.0,0.00019359,2]
[342833674,1732170634246,-500.0,0.00019359,2]
[342833675,1732170634256,-500.0,0.00019359,2]
[342833676,1732170634267,-500.0,0.00019359,2]
[342833677,1732170634276,-500.0,0.00019359,2]
[342833678,1732170634286,-500.0,0.00019359,2]
[342833679,1732170634295,-500.0,0.00019359,2]
[342833680,1732170634306,-500.0,0.00019359,2]
[342833681,1732170634316,-500.0,0.00019359,2]
[342833682,1732170634325,-500.0,0.00019359,2]
[342833683,1732170634334,-500.0,0.00019359,2]
[342833684,1732170634343,-500.0,0.00019359,2]
[342833685,1732170634353,-500.0,0.00019359,2]
[342833686,1732170634362,-500.0,0.00019359,2]
[342833687,1732170634371,-500.0,0.00019359,2]
[342833688,1732170634380,-500.0,0.00019359,2]
[342833689,1732170634389,-500.0,0.00019359,2]
[342833690,1732170634401,-500.0,0.00019359,2]
[342833691,1732170634411,-500.0,0.00019359,2]
[342833692,1732170634420,-500.0,0.00019359,2]
[342833693,1732170634429,-500.0,0.00019359,2]
[342833694,1732170634439,-500.0,0.00019359,2]
[342833695,1732170634537,-320.1468247,0.00019359,2]
[342833696,1732170634547,-500.0,0.00019359,2]
[342833697,1732170634557,-500.0,0.00019359,2]
[342833698,1732170634566,-375.00805528,0.00019359,2]
[342833699,1732170634575,-500.0,0.00019359,2]
[342833700,1732170634585,-500.0,0.00019359,2]
[342833701,1732170634594,-500.0,0.00019359,2]
[342833702,1732170634604,-500.0,0.00019359,2]
[342833703,1732170634613,-500.0,0.00019359,2]
[342833704,1732170634622,-500.0,0.00019359,2]
[342833705,1732170634632,-500.0,0.00019359,2]
[342833706,1732170634641,-500.0,0.00019359,2]
[342833707,1732170634655,-500.0,0.00019359,2]
[342833708,1732170634664,-500.0,0.00019359,2]
[342833709,1732170634674,-500.0,0.00019359,2]
[342833710,1732170634683,-500.0,0.00019359,2]
[342833711,1732170634693,-500.0,0.00019359,2]
[342833712,1732170634702,-500.0,0.00019359,2]
[342833713,1732170634711,-500.0,0.00019359,2]
[342833714,1732170634720,-500.0,0.00019359,2]
[342833715,1732170634730,-500.0,0.00019359,2]
[342833716,1732170634739,-500.0,0.00019359,2]
[342833717,1732170634749,-500.0,0.00019359,2]
[342833718,1732170634758,-500.0,0.00019359,2]
[342833719,1732170634768,-500.0,0.00019359,2]
[342833720,1732170634777,-500.0,0.00019359,2]
[342833721,1732170634786,-500.0,0.00019359,2]
[342833722,1732170634796,-500.0,0.00019359,2]
[342833723,1732170634806,-500.0,0.00019359,2]
[342833724,1732170634815,-500.0,0.00019359,2]
[342833725,1732170634824,-635.08358574,0.00019359,2]
[342833726,1732170634834,-500.0,0.00019359,2]
[342833727,1732170634843,-500.0,0.00019359,2]
[342833728,1732170634853,-500.0,0.00019359,2]
[342833729,1732170634863,-500.0,0.00019359,2]
[342833730,1732170634874,-500.0,0.00019359,2]
[342833731,1732170634883,-500.0,0.00019359,2]
[342833732,1732170634892,-350.0,0.00019359,2]
[342833733,1732170634904,-500.0,0.00019359,2]
[342833734,1732170634914,-500.0,0.00019359,2]
[342833735,1732170634923,-500.0,0.00019359,2]
[342833736,1732170634933,-500.0,0.00019359,2]
[342833737,1732170634942,-500.0,0.00019359,2]
[342833738,1732170634951,-789.84941188,0.00019788,4]
[342833739,1732170634961,-10032.39667606,0.0001984,4]
[342833740,1732170634971,-24223.411072,0.0001999,2]
[342833741,1732170634980,-254.515008,0.00020447,2]
[342833742,1732170634990,-151.0,0.00020483,2]
[342833743,1732170634999,-151.0,0.00020483,2]
[342833744,1732170635008,-152.571761,0.00020483,2]
[342833745,1732170635018,-151.0,0.00020483,2]
[342833746,1732170635027,-3529.600607,0.00020483,2]
[342833747,1732170635037,-3529.600607,0.00020483,2]
[342833748,1732170635046,-165.899622,0.00020483,2]
[342833749,1732170635056,-165.899622,0.00020483,2]
[342833750,1732170635065,-542.02903491,0.000205,2]
[342833751,1732170635075,-744.2,0.00020619,3]
[342833752,1732170635084,-372.1,0.00020619,3]
[342833753,1732170635094,-8461.76406505,0.00020727,2]
[342833754,1732170635103,-151.0,0.0002073,2]
[342833755,1732170635113,-165.899622,0.0002073,2]
[342833756,1732170635122,-165.899622,0.0002073,2]
[342833757,1732170635131,-151.0,0.00021031,2]
[342833758,1732170635141,-151.0,0.00021031,2]
[342833759,1732170635153,-3529.600607,0.00021031,2]
[342833760,1732170635162,-3529.600607,0.00021031,2]
[342833761,1732170635172,-8461.76406505,0.00021042,2]
[342833762,1732170635181,-8461.76406505,0.00021123,2]
[342833763,1732170635190,-198.29149237,0.00021407,2]
[342833764,1732170635199,-8461.76406505,0.00021542,2]
[342833765,1732170635208,-8461.76406505,0.00021672,2]
[342833766,1732170635218,-175.35481333,0.00021717,2]
[342833767,1732170635229,-151.0,0.00021811,2]
[342833768,1732170635238,-465.124771,0.00021811,2]
[342833769,1732170635248,-465.124771,0.00021811,2]
[342833770,1732170635257,-298.823087,0.00021811,2]
[342833771,1732170635266,-151.0,0.00021811,2]
[342833772,1732170635276,-151.0,0.00021811,2]
[342833773,1732170635285,-151.0,0.00021811,2]
[342833774,1732170635294,-151.0,0.00021811,2]
[342833775,1732170635303,-151.0,0.00021811,2]
[342833776,1732170635313,-151.0,0.00021811,2]
[342833777,1732170635322,-151.0,0.00021811,2]
[342833778,1732170635331,-151.0,0.00021811,2]
[342833779,1732170635340,-3286.471412,0.00021811,2]
[342833780,1732170635349,-151.0,0.00021811,2]
[342833781,1732170635359,-3286.471412,0.00021811,2]
[342833782,1732170635368,-151.0,0.00021811,2]
[342833783,1732170635378,-209.040594,0.00021811,2]
[342833784,1732170635387,-209.040594,0.00021811,2]
[342833785,1732170635399,-151.0,0.00021811,2]
[342833786,1732170635408,-151.0,0.00021811,2]
[342833787,1732170635417,-209.040594,0.00021811,2]
[342833788,1732170635426,-209.040594,0.00021811,2]
[342833789,1732170635435,-504.150543,0.00021812,2]
[342833790,1732170635444,-504.150543,0.00021812,2]
[342833791,1732170635454,-151.0,0.00021812,2]
[342833792,1732170635463,-86221.30952878,0.00021815,2]
[342833793,1732170635472,-151.0,0.00021815,2]
[342833794,1732170635481,-1092.263859,0.00021815,2]
[342833795,1732170635491,-1092.263859,0.00021815,2]
[342833796,1732170635500,-786.130363,0.00021815,2]
[342833797,1732170635511,-695.725673,0.00021815,2]
[342833798,1732170635521,-151.0,0.00021815,2]
[342833799,1732170635532,-786.130363,0.00021815,2]
[342833800,1732170635542,-151.0,0.00021815,2]
[342833801,1732170635551,-151.0,0.00021815,2]
[342833802,1732170635561,-151.0,0.00021815,2]
[342833803,1732170635572,-198.172015,0.00021815,2]
[342833804,1732170635581,-151.0,0.00021815,2]
[342833805,1732170635592,-198.172015,0.00021815,2]
[342833806,1732170635601,-226.418533,0.00021815,2]
[342833807,1732170635611,-504.150543,0.00021815,2]
[342833808,1732170635622,-504.150543,0.00021815,2]
[342833809,1732170635632,-271.385877,0.00021815,2]
[342833810,1732170635643,-202.532331,0.00021815,2]
[342833811,1732170635654,-202.532331,0.00021815,2]
[342833812,1732170635663,-151.0,0.00021815,2]
[342833813,1732170635672,-465.124771,0.00021815,2]
[342833814,1732170635682,-465.124771,0.00021815,2]
[342833815,1732170635691,-151.0,0.00021815,2]
[342833816,1732170635702,-151.0,0.00021815,2]
[342833817,1732170635711,-195.375406,0.00021815,2]
[342833818,1732170635721,-151.0,0.00021815,2]
[342833819,1732170635730,-195.375406,0.00021815,2]
[342833820,1732170635739,-151.0,0.00021815,2]
[342833821,1732170635750,-3286.471412,0.00021815,2]
[342833822,1732170635759,-151.0,0.00021815,2]
[342833823,1732170635769,-151.0,0.00021815,2]
[342833824,1732170635779,-3286.471412,0.00021815,2]
[342833825,1732170635788,-151.468329,0.00021815,2]
[342833826,1732170635798,-209.040594,0.00021815,2]
[342833827,1732170635808,-151.0,0.00021815,2]
[342833828,1732170635817,-209.040594,0.00021815,2]
[342833829,1732170635827,-155.528434,0.00021815,2]
[342833830,1732170635836,-151.0,0.00021815,2]
[342833831,1732170635846,-3529.600607,0.00021815,2]
[342833832,1732170635855,-3529.600607,0.00021815,2]
[342833833,1732170635864,-165.899622,0.00021815,2]
[342833834,1732170635874,-165.899622,0.00021815,2]
[342833835,1732170635883,-250000.0,0.00021817,2]
[342833836,1732170635894,-7354.81372146,0.00021817,2]
[342833837,1732170635903,-151.0,0.00021817,2]
[342833838,1732170635913,-151.0,0.00021817,2]
[342833839,1732170635923,-151.0,0.00021817,2]
[342833840,1732170635932,-151.0,0.00021817,2]
[342833841,1732170635941,-151.0,0.00021817,2]
[342833842,1732170635950,-151.0,0.00021817,2]
[342833843,1732170635960,-1092.263859,0.00021817,2]
[342833844,1732170635970,-1092.263859,0.00021817,2]
[342833845,1732170635979,-786.130363,0.00021817,2]
[342833846,1732170635989,-695.725673,0.00021817,2]
[342833847,1732170635999,-786.130363,0.00021817,2]
[342833848,1732170636008,-151.0,0.00021817,2]
[342833849,1732170636018,-151.0,0.00021817,2]
[342833850,1732170636028,-151.0,0.00021817,2]
[342833851,1732170636037,-198.172015,0.00021817,2]
[342833852,1732170636047,-151.0,0.00021817,2]
[342833853,1732170636057,-198.172015,0.00021817,2]
[342833854,1732170636066,-504.150543,0.00021817,2]
[342833855,1732170636076,-504.150543,0.00021817,2]
[342833856,1732170636085,-202.532331,0.00021817,2]
[342833857,1732170636095,-202.532331,0.00021817,2]
[342833858,1732170636104,-627.42401568,0.00021817,2]
[342833859,1732170636115,-151.0,0.00021817,2]
[342833860,1732170636125,-465.124771,0.00021817,2]
[342833861,1732170636134,-465.124771,0.00021817,2]
[342833862,1732170636145,-151.0,0.00021817,2]
[342833863,1732170636154,-151.0,0.00021817,2]
[342833864,1732170636164,-195.375406,0.00021817,2]
[342833865,1732170636175,-151.0,0.00021817,2]
[342833866,1732170636184,-195.375406,0.00021817,2]
[342833867,1732170636194,-187.749564,0.00021817,2]
[342833868,1732170636203,-3286.471412,0.00021817,2]
[342833869,1732170636214,-153.516216,0.00021817,2]
[342833870,1732170636227,-3286.471412,0.00021817,2]
[342833871,1732170636237,-151.0,0.00021817,2]
[342833872,1732170636246,-209.040594,0.00021817,2]
[342833873,1732170636257,-151.0,0.00021817,2]
[342833874,1732170636266,-209.040594,0.00021817,2]
[342833875,1732170636276,-151.0,0.00021817,2]
[342833876,1732170636286,-3529.600607,0.00021817,2]
[342833877,1732170636295,-3529.600607,0.00021817,2]
[342833878,1732170636305,-165.899622,0.00021817,2]
[342833879,1732170636314,-165.899622,0.00021817,2]
[342833880,1732170636323,-500.0,0.00021917,2]
[342833881,1732170636408,-151.0,0.00021917,2]
[342833882,1732170636418,-538.88337881,0.00021917,2]
[342833883,1732170636428,-543.70753989,0.00021917,2]
[342833884,1732170636437,-153.415636,0.00021917,2]
[342833885,1732170636447,-500.0,0.00021917,2]
[342833886,1732170636456,-500.0,0.00021917,2]
[342833887,1732170636465,-500.0,0.00021917,2]
[342833888,1732170636475,-256.36248207,0.00021917,2]
[342833889,1732170636484,-500.0,0.00021917,2]
[342833890,1732170636494,-500.0,0.00021917,2]
[342833891,1732170636504,-500.0,0.00021917,2]
[342833892,1732170636513,-500.0,0.00021917,2]
[342833893,1732170636523,-500.0,0.00021917,2]
[342833894,1732170636532,-637.56,0.00021917,2]
[342833895,1732170636542,-500.0,0.00021917,2]
[342833896,1732170636552,-151.838389,0.00021917,2]
[342833897,1732170636562,-151.0,0.00021917,2]
[342833898,1732170636572,-151.0,0.00021917,2]
[342833899,1732170636581,-151.0,0.00021917,2]
[342833900,1732170636591,-500.0,0.00021917,2]
[342833901,1732170636601,-151.0,0.00021917,2]
[342833902,1732170636610,-151.0,0.00021917,2]
[342833903,1732170636620,-151.0,0.00021917,2]
[342833904,1732170636629,-151.0,0.00021917,2]
[342833905,1732170636639,-151.0,0.00021917,2]
[342833906,1732170636651,-151.0,0.00021917,2]
[342833907,1732170636663,-151.0,0.00021917,2]
[342833908,1732170636674,-151.0,0.00021917,2]
[342833909,1732170636683,-187.172816,0.00021917,2]
[342833910,1732170636693,-164.789879,0.00021917,2]
[342833911,1732170636702,-164.789879,0.00021917,2]
[342833912,1732170636712,-164.789879,0.00021917,2]
[342833913,1732170636722,-164.789879,0.00021917,2]
[342833914,1732170636732,-164.789879,0.00021917,2]
[342833915,1732170636742,-164.789879,0.00021917,2]
[342833916,1732170636752,-164.789879,0.00021917,2]
[342833917,1732170636761,-164.789879,0.00021917,2]
[342833918,1732170636771,-164.789879,0.00021917,2]
[342833919,1732170636782,-164.789879,0.00021917,2]
[342833920,1732170636792,-500.0,0.00021917,2]
[342833921,1732170636801,-164.789879,0.00021917,2]
[342833922,1732170636812,-164.789879,0.00021917,2]
[342833923,1732170636821,-164.789879,0.00021917,2]
[342833924,1732170636830,-164.789879,0.00021917,2]
[342833925,1732170636840,-574.0340203,0.00021917,2]
[342833926,1732170636849,-502.42170168,0.00021917,2]
[342833927,1732170636859,-501.06551661,0.00021917,2]
[342833928,1732170636868,-500.0,0.00021917,2]
[342833929,1732170636878,-500.0,0.00021917,2]
[342833930,1732170636887,-500.0,0.00021917,2]
[342833931,1732170636898,-151.0,0.00021917,2]
[342833932,1732170636908,-151.0,0.00021917,2]
[342833933,1732170636917,-151.0,0.00021917,2]
[342833934,1732170636927,-151.0,0.00021917,2]
[342833935,1732170636936,-172.44126,0.00021917,2]
[342833936,1732170636945,-151.0,0.00021917,2]
[342833937,1732170636955,-151.0,0.00021917,2]
[342833938,1732170636964,-151.0,0.00021917,2]
[342833939,1732170636973,-500.0,0.00021917,2]
[342833940,1732170636982,-151.0,0.00021917,2]
[342833941,1732170636992,-500.0,0.00021917,2]
[342833942,1732170637001,-521.83308685,0.00021917,2]
[342833943,1732170637011,-501.5081737,0.00021917,2]
[342833944,1732170637020,-500.0,0.00021917,2]
[342833945,1732170637030,-510.10837869,0.00021917,2]
[342833946,1732170637039,-506.91446242,0.00021917,2]
[342833947,1732170637049,-500.0,0.00021917,2]
[342833948,1732170637059,-501.34383965,0.00021917,2]
[342833949,1732170637068,-500.0,0.00021917,2]
[342833950,1732170637077,-500.63453027,0.00021917,2]
[342833951,1732170637087,-207.11164942,0.00021917,2]
[342833952,1732170637097,-502.78880445,0.00021917,2]
[342833953,1732170637106,-525.70736146,0.00021917,2]
[342833954,1732170637115,-501.29832956,0.00021917,2]
[342833955,1732170637124,-500.0,0.00021917,2]
[342833956,1732170637134,-151.0,0.00021917,2]
[342833957,1732170637143,-151.0,0.00021917,2]
[342833958,1732170637155,-151.0,0.00021917,2]
[342833959,1732170637164,-151.0,0.00021917,2]
[342833960,1732170637173,-151.0,0.00021917,2]
[342833961,1732170637183,-151.579029,0.00021917,2]
[342833962,1732170637193,-503.78013122,0.00021917,2]
[342833963,1732170637202,-500.0,0.00021917,2]
[342833964,1732170637212,-500.0,0.00021917,2]
[342833965,1732170637227,-151.0,0.00021917,2]
[342833966,1732170637236,-500.0,0.00021917,2]
[342833967,1732170637246,-151.0,0.00021917,2]
[342833968,1732170637255,-151.0,0.00021917,2]
[342833969,1732170637265,-500.0,0.00021917,2]
[342833970,1732170637275,-151.0,0.00021917,2]
[342833971,1732170637284,-500.0,0.00021917,2]
[342833972,1732170637297,-151.0,0.00021917,2]
[342833973,1732170637307,-169.028432,0.00021917,2]
[342833974,1732170637317,-500.0,0.00021917,2]
[342833975,1732170637326,-500.0,0.00021917,2]
[342833976,1732170637336,-500.0,0.00021917,2]
[342833977,1732170637346,-500.0,0.00021917,2]
[342833978,1732170637355,-500.0,0.00021917,2]
[342833979,1732170637366,-500.0,0.00021917,2]
[342833980,1732170637375,-502.22692997,0.00021917,2]
[342833981,1732170637384,-500.0,0.00021917,2]
[342833982,1732170637394,-500.0,0.00021917,2]
[342833983,1732170637405,-500.0,0.00021917,2]
[342833984,1732170637414,-500.0,0.00021917,2]
[342833985,1732170637424,-500.0,0.00021917,2]
[342833986,1732170637433,-644.209735,0.00021917,2]
[342833987,1732170637443,-644.209735,0.00021917,2]
[342833988,1732170637452,-644.209735,0.00021917,2]
[342833989,1732170637461,-644.209735,0.00021917,2]
[342833990,1732170637471,-644.209735,0.00021917,2]
[342833991,1732170637480,-501.26159677,0.00021917,2]
[342833992,1732170637489,-500.0,0.00021917,2]
[342833993,1732170637499,-501.32239801,0.00021917,2]
[342833994,1732170637508,-500.0,0.00021917,2]
[342833995,1732170637518,-571.84885569,0.00021917,2]
[342833996,1732170637527,-625.2,0.00021917,2]
[342833997,1732170637537,-593.74,0.00021917,2]
[342833998,1732170637547,-503.76763747,0.00021917,2]
[342833999,1732170637556,-502.26035948,0.00021917,2]
[342834000,1732170637566,-502.80288089,0.00021917,2]
[342834001,1732170637575,-500.0,0.00021917,2]
[342834002,1732170637585,-500.0,0.00021917,2]
[342834003,1732170637594,-560.03961568,0.00021917,2]
[342834004,1732170637604,-197.00599166,0.00021917,2]
[342834005,1732170637613,-504.29747356,0.00021917,2]
[342834006,1732170637623,-500.0,0.00021917,2]
[342834007,1732170637633,-500.0,0.00021917,2]
[342834008,1732170637642,-503.57454404,0.00021917,2]
[342834009,1732170637657,-507.88612126,0.00021917,2]
[342834010,1732170637666,-547.41775678,0.00021917,2]
[342834011,1732170637676,-500.0,0.00021917,2]
[342834012,1732170637686,-500.0,0.00021917,2]
[342834013,1732170637695,-510.36805676,0.00021917,2]
[342834014,1732170637704,-500.0,0.00021917,2]
[342834015,1732170637714,-504.28330132,0.00021917,2]
[342834016,1732170637723,-501.60143785,0.00021917,2]
[342834017,1732170637733,-1024.87066601,0.00021917,2]
[342834018,1732170637744,-504.92533819,0.00021917,2]
[342834019,1732170637754,-500.0,0.00021917,2]
[342834020,1732170637763,-535.82529381,0.00021917,2]
[342834021,1732170637773,-151.0,0.00021917,2]
[342834022,1732170637785,-151.0,0.00021917,2]
[342834023,1732170637795,-151.0,0.00021917,2]
[342834024,1732170637804,-151.0,0.00021917,2]
[342834025,1732170637814,-151.0,0.00021917,2]
[342834026,1732170637823,-500.0,0.00021917,2]
[342834027,1732170637833,-151.0,0.00021917,2]
[342834028,1732170637842,-151.0,0.00021917,2]
[342834029,1732170637852,-151.0,0.00021917,2]
[342834030,1732170637861,-501.69010257,0.00021917,2]